bitfinex/quotes_ETHUSD_20250802
["timestamp","ask_amount","ask_price","bid_price","bid_amount"]
[1754137325590,0.001,3512.0,3511.4,8.42171569]
[1754137325765,0.001,3512.0,3511.9,8.42171569]
[1754137325964,4.366,3512.0,3511.9,8.42171569]
[1754137327058,4.367,3512.0,3511.9,8.42171569]
[1754137327876,0.001,3512.0,3511.9,8.42171569]
[1754137328390,0.001,3512.0,3511.9,9.34431569]
[1754137328681,0.001,3512.0,3511.9,10.27874726]
[1754137329551,0.001,3512.4,3511.9,10.27874726]
[1754137329778,0.001,3512.4,3512.0,0.9226]
[1754137330191,0.001,3512.4,3511.9,9.35614726]
[1754137330356,0.001,3512.4,3512.1,0.9226]
[1754137330555,0.001,3512.4,3512.2,1.02787473]
[1754137330980,0.001,3512.4,3512.3,0.9226]
[1754137332456,0.001,3512.4,3512.3,0.95107137]
[1754137332652,0.001,3512.4,3512.3,0.9226]
[1754137333015,0.001,3512.5,3512.3,0.9226]
[1754137333159,0.001,3512.9,3512.8,8.42171569]
[1754137333580,0.001,3512.9,3512.8,8.86021569]
[1754137334874,0.001,3512.9,3512.4,0.19504747]
[1754137335059,0.001,3512.9,3512.4,8.61676316]
[1754137335262,0.001,3512.9,3512.5,0.9226]
[1754137335562,0.001,3512.9,3512.6,0.95393632]
[1754137336199,0.001,3512.9,3512.6,1.39243632]
[1754137337578,0.001,3512.9,3512.6,0.95393632]
[1754137337957,0.001,3512.9,3512.6,1.39243632]
[1754137338194,0.4737,3512.8,3512.6,0.95393632]
[1754137338390,0.9403,3512.7,3511.9,12.78371569]
[1754137338630,0.4737,3512.6,3511.9,12.78371569]
[1754137339934,0.4737,3512.6,3511.0,0.1424]
[1754137339935,3.0,3512.4,3511.0,0.1424]
[1754137340106,3.0,3512.4,3510.9,8.42171569]
[1754137340429,0.9403,3512.3,3511.0,0.93443157]
[1754137340633,3.0,3512.4,3511.0,0.93443157]
[1754137340815,3.9403,3512.2,3511.0,0.93443157]
[1754137341017,0.9403,3512.1,3511.4,8.42171569]
[1754137341226,0.4737,3512.1,3511.5,1.28067157]
[1754137341532,4.37,3512.0,3511.5,1.28067157]
[1754137341728,0.4737,3512.1,3511.6,0.4517]
[1754137341889,0.4737,3512.1,3511.7,0.458]
[1754137342092,3.4737,3512.1,3511.7,0.458]
[1754137342344,3.4737,3512.1,3511.5,0.84217157]
[1754137342345,0.9087,3512.0,3511.5,0.84217157]
[1754137342492,3.0,3512.1,3511.0,0.458]
[1754137342493,0.9087,3511.9,3511.0,0.458]
[1754137342694,0.4717,3511.8,3511.0,0.458]
[1754137344133,0.4717,3511.8,3511.4,8.42171569]
[1754137344340,0.4717,3511.7,3511.4,8.42171569]
[1754137344502,0.4717,3511.6,3511.4,8.42171569]
[1754137344705,0.4717,3511.6,3511.4,9.26388726]
[1754137344899,0.4717,3511.5,3511.4,9.26388726]
[1754137346333,0.4717,3511.5,3511.4,8.42171569]
[1754137347563,4.371,3511.8,3511.4,9.33141569]
[1754137347750,0.4717,3512.3,3511.5,0.9097]
[1754137347952,0.4717,3512.3,3511.4,8.42171569]
[1754137347953,4.37,3512.0,3511.4,8.42171569]
[1754137348163,0.437,3512.3,3511.5,0.93314157]
[1754137348471,4.372,3512.0,3511.5,0.93314157]
[1754137348672,0.4717,3512.1,3511.6,0.458]
[1754137348881,4.372,3512.0,3511.6,0.458]
[1754137349045,4.372,3512.0,3511.5,0.93314157]
[1754137349249,0.4717,3511.9,3511.6,0.93548573]
[1754137349573,0.4717,3512.8,3511.7,0.93817623]
[1754137349753,3.0,3512.6,3511.9,8.42171569]
[1754137349947,3.0,3512.6,3512.0,0.4517]
[1754137350274,0.001,3512.9,3512.0,0.9097]
[1754137350448,4.373,3512.8,3512.5,8.42171569]
[1754137350876,4.373,3512.8,3512.5,8.87971569]
[1754137351467,4.373,3512.8,3512.5,8.42171569]
[1754137352079,0.4717,3512.7,3512.1,0.93314157]
[1754137353727,3.0,3512.7,3511.7,0.856095]
[1754137353882,0.9087,3512.6,3511.7,0.856095]
[1754137354083,0.9087,3512.5,3511.7,0.856095]
[1754137354324,0.9087,3512.4,3511.6,0.002]
[1754137354832,3.0,3512.2,3511.6,8.42371569]
[1754137355123,0.4717,3512.1,3511.6,9.35705726]
[1754137355531,0.4717,3512.0,3511.6,9.35705726]
[1754137355828,4.377,3512.0,3511.7,0.458]
[1754137355998,4.377,3512.0,3511.6,9.35705726]
[1754137356624,4.8487,3512.0,3511.6,9.35705726]
[1754137356784,0.4717,3512.0,3511.6,9.35705726]
[1754137357002,4.376,3512.0,3511.7,0.02847623]
[1754137357199,4.376,3512.0,3511.6,9.81505726]
[1754137357200,3.0,3511.9,3511.6,0.002]
[1754137357502,3.0,3511.7,3511.6,0.002]
[1754137358001,3.9087,3511.7,3511.6,0.002]
[1754137358535,0.9087,3511.7,3511.6,0.002]
[1754137358839,7.8637,3511.7,3511.6,0.002]
[1754137359442,8.2987,3511.7,3511.6,0.002]
[1754137360032,3.9087,3511.7,3511.6,0.002]
[1754137360196,7.391,3511.7,3511.6,0.002]
[1754137360393,7.8627,3511.7,3511.6,0.002]
[1754137361848,8.2997,3511.7,3511.6,0.002]
[1754137362300,3.0,3511.6,3511.2,0.002]
[1754137362609,0.9087,3511.6,3511.2,0.002]
[1754137362940,0.9087,3511.5,3511.2,0.002]
[1754137363432,0.9087,3511.4,3511.2,0.002]
[1754137363630,7.395,3511.3,3511.2,0.002]
[1754137364043,8.3037,3511.3,3511.2,0.002]
[1754137365875,7.393,3511.3,3511.2,0.002]
[1754137366077,4.393,3511.3,3511.2,0.002]
[1754137366572,0.4717,3511.7,3511.2,0.002]
[1754137366771,3.0,3511.5,3511.2,0.002]
[1754137367630,0.4717,3511.4,3511.2,0.002]
[1754137368071,7.393,3511.3,3511.2,0.002]
[1754137368296,7.8647,3511.3,3511.2,0.002]
[1754137368493,8.3017,3511.3,3511.2,0.002]
[1754137368665,3.0,3511.3,3511.2,0.002]
[1754137368870,7.394,3511.3,3511.2,0.002]
[1754137369066,0.28543,3512.2,3511.2,0.89017157]
[1754137369290,0.9087,3512.1,3511.2,0.002]
[1754137369666,0.9087,3512.0,3511.2,0.002]
[1754137369864,4.399,3511.9,3511.2,0.002]
[1754137370107,0.4717,3511.9,3511.2,0.002]
[1754137370263,0.437,3512.0,3511.2,0.002]
[1754137370264,3.0,3511.7,3511.2,0.002]
[1754137370675,3.0,3511.5,3511.2,0.002]
[1754137371269,3.0,3511.5,3511.2,0.46]
[1754137371599,3.0,3511.5,3511.2,0.002]
[1754137372403,4.398,3511.4,3511.3,0.4656]
[1754137373562,0.4741,3512.0,3511.3,1.29689934]
[1754137373759,0.4741,3512.6,3511.5,8.42171569]
[1754137373975,4.396,3512.5,3511.6,0.9307]
[1754137374184,3.0,3512.4,3511.6,0.9307]
[1754137374413,4.396,3512.5,3511.7,0.93524157]
[1754137374621,0.001,3512.9,3512.0,8.42171569]
[1754137374903,0.001,3512.9,3511.3,0.84029934]
[1754137374904,3.0,3512.7,3511.4,8.42171569]
[1754137375112,3.0,3512.7,3511.6,0.4656]
[1754137375273,0.9229,3512.6,3511.6,0.4656]
[1754137375668,4.8711,3512.8,3511.6,0.4656]
[1754137375888,3.0,3512.7,3511.9,8.42171569]
[1754137376367,0.9229,3512.6,3511.7,0.88873157]
[1754137376571,0.9229,3512.5,3511.5,0.4656]
[1754137376774,0.4488,3512.5,3511.5,0.4656]
[1754137376985,0.4741,3512.4,3511.5,0.4656]
[1754137377270,4.399,3512.3,3511.5,0.4656]
[1754137378084,0.4741,3512.2,3511.5,0.4656]
[1754137378409,0.4741,3512.2,3511.6,1.0192715]
[1754137382576,4.393,3512.1,3511.6,1.0192715]
[1754137382876,0.9229,3512.0,3511.2,0.002]
[1754137383075,3.9229,3512.0,3511.2,0.002]
[1754137383298,0.9229,3511.9,3511.2,0.002]
[1754137383790,0.9229,3511.8,3511.2,0.002]
[1754137384202,0.4488,3511.8,3511.2,0.002]
[1754137384371,0.4488,3512.3,3511.2,8.42371569]
[1754137384708,0.4741,3512.0,3511.3,0.88908157]
[1754137386515,3.0,3511.8,3511.3,0.88908157]
[1754137386808,3.0,3511.8,3511.3,1.35468157]
[1754137387529,3.4741,3511.8,3511.3,1.35468157]
[1754137388222,4.393,3511.7,3511.4,1.49014973]
[1754137388525,4.393,3511.7,3511.4,1.02454973]
[1754137389505,0.4488,3512.4,3511.5,0.4656]
[1754137389815,3.0,3512.2,3511.2,8.42371569]
[1754137390004,0.9229,3512.1,3511.2,0.002]
[1754137390493,0.9229,3512.0,3511.2,0.002]
[1754137390997,0.4741,3512.0,3511.7,5.46125642]
[1754137391331,0.4741,3511.9,3511.7,5.46125642]
[1754137391520,4.392,3511.8,3511.7,5.46125642]
[1754137391917,4.8661,3511.8,3511.7,5.46125642]
[1754137392120,5.3149,3511.8,3511.4,5.46125642]
[1754137392317,4.8661,3511.8,3511.7,5.46125642]
[1754137393695,5.3149,3511.8,3511.4,5.46125642]
[1754137393928,3.9229,3511.7,3511.2,0.002]
[1754137394302,0.9229,3511.6,3511.2,0.002]
[1754137394824,0.4741,3511.5,3511.2,0.002]
[1754137395023,4.393,3511.4,3511.2,0.002]
[1754137395233,4.8671,3511.4,3511.2,0.002]
[1754137395540,5.3169,3511.3,3511.2,0.002]
[1754137398704,8.3169,3511.3,3511.2,0.002]
[1754137401240,8.53383577,3511.3,3511.2,0.002]
[1754137402015,3.0,3511.3,3511.2,5.46325642]
[1754137402234,7.393,3511.3,3511.2,5.46325642]
[1754137402717,0.4658,3511.7,3511.2,5.46325642]
[1754137403051,0.001,3512.2,3511.7,5.46125642]
[1754137403226,3.0,3512.0,3511.4,5.46125642]
[1754137403426,0.4658,3511.9,3511.4,5.46125642]
[1754137403650,4.393,3512.1,3511.4,5.46125642]
[1754137403651,3.0,3511.7,3511.4,5.46125642]
[1754137403953,3.0,3511.7,3511.5,0.4303]
[1754137405070,3.0,3511.7,3511.2,0.4323]
[1754137405231,3.0,3511.7,3511.2,0.002]
[1754137405437,3.0,3511.7,3511.3,0.4303]
[1754137406371,0.001,3512.2,3511.5,8.4256458]
[1754137406580,4.392,3512.1,3512.0,8.4256458]
[1754137406865,7.392,3512.1,3512.0,8.8769458]
[1754137407070,7.392,3512.1,3512.0,9.3072458]
[1754137407365,4.394,3512.1,3512.0,9.3072458]
[1754137407659,4.394,3512.1,3512.0,10.23797038]
[1754137409218,4.394,3512.1,3511.5,8.8769458]
[1754137409416,4.394,3512.1,3511.6,0.8816]
[1754137409623,4.394,3512.1,3511.7,0.8816]
[1754137409847,4.394,3512.1,3511.5,8.4256458]
[1754137410050,4.394,3512.1,3511.6,0.8816]
[1754137410254,0.001,3512.2,3511.7,1.89795108]
[1754137410526,4.393,3512.1,3512.0,8.4256458]
[1754137410953,4.393,3512.1,3512.0,9.3072458]
[1754137411358,4.393,3512.2,3512.0,9.3072458]
[1754137411532,4.393,3512.2,3512.1,0.8816]
[1754137411732,4.393,3512.2,3512.1,1.81232458]
[1754137412749,0.001,3512.2,3512.1,1.81232458]
[1754137417975,0.001,3512.2,3512.1,1.84079757]
[1754137418294,0.001,3512.2,3512.1,2.69689657]
[1754137418679,0.001,3512.2,3512.1,2.66842358]
[1754137419276,0.001,3512.9,3512.1,2.66842358]
[1754137419481,4.387,3512.9,3512.6,8.4256458]
[1754137419842,4.387,3512.9,3512.6,8.8559458]
[1754137420082,4.8528,3512.9,3512.6,8.4256458]
[1754137420290,4.8528,3512.9,3512.4,3.0]
[1754137420808,0.4658,3512.8,3512.4,3.0]
[1754137420960,0.4658,3512.7,3512.5,0.89342069]
[1754137423896,0.4658,3512.7,3512.4,0.4658]
[1754137424103,0.001,3512.9,3512.4,0.4658]
[1754137424301,0.001,3512.9,3512.5,0.4303]
[1754137424466,0.001,3512.9,3512.6,8.4256458]
[1754137424685,0.001,3512.9,3512.6,9.3072458]
[1754137424904,0.001,3513.3,3512.8,5.45371087]
[1754137425208,0.001,3513.3,3513.2,5.45371087]
[1754137425570,0.001,3513.3,3513.2,5.88401087]
[1754137426289,0.001,3513.3,3513.2,5.45371087]
[1754137426886,0.001,3513.3,3513.1,0.114124]
[1754137427169,0.001,3513.3,3513.2,0.9411687]
[1754137428171,0.001,3513.3,3513.2,1.85123277]
[1754137428372,0.001,3513.3,3513.2,1.8227687]
[1754137428606,0.001,3513.3,3513.2,2.2885687]
[1754137428905,0.001,3513.3,3513.2,1.8372687]
[1754137429708,0.001,3513.3,3513.2,1.4069687]
[1754137429887,0.4668,3513.3,3513.2,0.9411687]
[1754137430080,0.4668,3513.3,3513.1,0.114123]
[1754137430313,0.8975,3513.2,3513.1,0.114123]
[1754137430470,0.8975,3513.2,3512.5,8.41596297]
[1754137430794,0.8975,3513.1,3512.6,0.856017]
[1754137430996,0.8975,3513.0,3511.6,0.4303]
[1754137431195,0.8975,3512.9,3512.4,0.85607]
[1754137431395,0.8975,3512.8,3512.4,0.85607]
[1754137431606,4.381,3513.1,3512.4,0.85607]
[1754137431911,0.9364,3512.7,3512.4,0.85607]
[1754137432316,0.4626,3512.6,3512.0,4.381]
[1754137432612,0.4626,3512.8,3512.4,8.41596297]
[1754137432790,0.4738,3513.0,3512.4,8.41596297]
[1754137432997,0.4738,3513.0,3512.0,0.856175]
[1754137432998,0.4626,3512.9,3512.0,0.856175]
[1754137433335,0.4626,3512.9,3511.9,8.41596297]
[1754137433336,0.4738,3512.8,3511.9,8.41596297]
[1754137433630,0.4626,3512.7,3511.9,8.41596297]
[1754137433926,0.4738,3512.6,3511.9,8.41596297]
[1754137434096,0.4738,3512.6,3511.9,8.77770835]
[1754137434297,0.4626,3512.5,3511.9,8.77770835]
[1754137434704,0.4738,3512.4,3511.9,8.77770835]
[1754137434909,3.0,3513.0,3511.9,8.77770835]
[1754137435083,0.9364,3512.3,3511.9,8.41596297]
[1754137435284,0.9364,3512.2,3511.4,8.41596297]
[1754137435484,0.9364,3512.1,3511.2,0.002]
[1754137435686,0.9364,3512.1,3511.2,0.4536]
[1754137436201,0.4626,3512.0,3511.2,0.4536]
[1754137436391,0.4626,3512.0,3511.3,0.9369063]
[1754137440653,0.4738,3511.9,3511.3,0.9369063]
[1754137440850,0.4626,3511.8,3511.3,0.9369063]
[1754137441162,15.581,3513.3,3511.6,8.41596297]
[1754137441163,3.0,3513.2,3511.6,8.41596297]
[1754137441312,0.4626,3512.9,3512.3,8.41596297]
[1754137441713,0.4738,3512.8,3512.3,8.41596297]
[1754137441946,0.4626,3512.7,3512.3,8.41596297]
[1754137442521,4.8446,3512.7,3512.3,8.41596297]
[1754137442728,4.382,3512.7,3512.3,8.86756297]
[1754137442936,0.4738,3513.1,3512.3,8.86756297]
[1754137443242,4.8446,3513.0,3512.3,8.86756297]
[1754137443562,0.4626,3512.9,3512.3,8.86756297]
[1754137443917,0.4626,3512.9,3511.8,8.41596297]
[1754137444223,0.4738,3512.8,3511.8,8.41596297]
[1754137444416,0.4626,3512.7,3511.8,8.41596297]
[1754137444645,0.4738,3512.6,3511.8,8.41596297]
[1754137445051,0.4626,3512.5,3511.5,0.53209063]
[1754137445350,4.8578,3512.4,3511.5,0.53209063]
[1754137445554,0.9364,3512.3,3511.5,0.53209063]
[1754137445710,4.384,3512.4,3511.5,0.53209063]
[1754137445914,0.9364,3512.2,3511.5,0.53209063]
[1754137446146,0.4626,3512.1,3511.6,1.03365599]
[1754137446347,0.4626,3512.1,3511.3,8.41596297]
[1754137446547,0.4738,3512.0,3511.2,0.002]
[1754137447057,0.4626,3511.9,3511.2,0.002]
[1754137448331,0.4738,3511.8,3511.2,0.002]
[1754137448885,0.4626,3511.7,3511.2,0.002]
[1754137449229,0.4626,3511.6,3511.2,0.002]
[1754137449644,0.4738,3511.7,3511.2,0.002]
[1754137449828,0.4626,3511.5,3511.2,0.002]
[1754137450133,0.9364,3511.6,3511.2,0.002]
[1754137450328,0.4626,3511.4,3511.2,0.002]
[1754137451172,0.4626,3511.3,3511.2,0.002]
[1754137452482,0.9364,3511.3,3511.2,0.002]
[1754137457485,7.379,3511.3,3511.2,0.002]
[1754137457844,8.8654,3511.3,3511.2,0.002]
[1754137458040,3.55,3511.2,3511.1,0.002]
[1754137458283,1.4864,3511.2,3511.1,0.002]
[1754137458456,4.4864,3511.2,3511.1,0.002]
[1754137459063,1.4864,3511.2,3511.1,0.002]
[1754137459262,8.3274,3511.2,3511.1,0.002]
[1754137460063,8.8774,3511.2,3511.1,0.002]
[1754137462184,4.4864,3511.2,3511.1,0.002]
[1754137462390,7.8536,3511.2,3511.1,0.002]
[1754137462748,3.4626,3511.2,3511.1,0.002]
[1754137463089,3.0,3511.2,3511.1,0.002]
[1754137463477,4.392,3511.2,3511.1,0.002]
[1754137463687,4.392,3511.2,3511.1,0.4614]
[1754137463989,4.393,3511.2,3511.1,0.4614]
[1754137464590,5.3456,3511.2,3511.1,0.002]
[1754137466151,8.8956,3511.2,3511.1,0.002]
[1754137469057,7.8866,3511.2,3511.1,0.002]
[1754137469256,8.3476,3511.2,3511.1,0.002]
[1754137472062,7.3406,3511.7,3511.1,0.4614]
[1754137472277,4.394,3511.6,3511.1,0.4614]
[1754137472567,3.0,3511.5,3511.1,0.4614]
[1754137472896,3.4916,3511.5,3511.1,0.002]
[1754137473098,0.4916,3511.4,3511.1,0.002]
[1754137473297,3.0,3511.2,3511.1,0.002]
[1754137475297,3.0,3511.6,3511.1,0.4614]
[1754137475520,4.392,3511.5,3511.1,0.9504]
[1754137475694,4.392,3511.5,3511.1,0.002]
[1754137475861,4.392,3511.5,3511.2,0.9484]
[1754137476060,4.392,3511.5,3511.3,0.9484]
[1754137476261,3.0,3511.6,3511.4,0.9484]
[1754137476505,0.4916,3512.0,3511.5,0.4594]
[1754137476716,3.0,3511.8,3511.1,0.002]
[1754137477013,7.392,3511.7,3511.6,0.4594]
[1754137477208,5.3446,3511.7,3511.1,0.002]
[1754137477382,0.9526,3511.6,3511.1,0.002]
[1754137477583,3.0,3511.4,3511.1,0.002]
[1754137477765,4.392,3511.3,3511.1,0.002]
[1754137477966,3.0,3511.2,3511.1,0.002]
[1754137478370,3.9526,3511.2,3511.1,0.002]
[1754137480277,4.5026,3511.2,3511.1,0.002]
[1754137482785,6.2156,3511.2,3511.1,0.002]
[1754137486791,8.4306,3511.2,3511.1,0.002]
[1754137487087,3.0,3511.2,3511.1,0.002]
[1754137487505,7.389,3511.2,3511.1,0.002]
[1754137488106,0.28546,3511.9,3511.1,0.4614]
[1754137488313,4.389,3511.8,3511.1,0.9504]
[1754137488492,3.0,3511.7,3511.2,0.9484]
[1754137488689,4.39,3511.6,3511.1,0.002]
[1754137488985,4.39,3511.6,3511.3,0.9484]
[1754137489309,4.39,3511.6,3511.4,0.9484]
[1754137489623,4.39,3511.6,3511.1,0.491]
[1754137489913,0.4916,3511.5,3511.1,0.002]
[1754137490216,4.389,3511.4,3511.1,0.002]
[1754137490391,4.389,3511.4,3511.1,0.4614]
[1754137490791,4.389,3511.4,3511.1,0.491]
[1754137491015,4.389,3511.4,3511.2,0.9484]
[1754137491318,4.389,3511.4,3511.3,0.9484]
[1754137491693,3.0,3511.9,3511.3,0.9484]
[1754137491888,3.0,3511.7,3511.3,0.9484]
[1754137492106,3.0,3511.7,3511.1,0.002]
[1754137492107,4.389,3511.6,3511.1,0.002]
[1754137492720,4.389,3511.6,3511.2,0.4396]
[1754137493022,4.389,3511.6,3511.3,0.8942]
[1754137493186,4.389,3511.6,3511.3,0.4546]
[1754137493390,4.389,3511.6,3511.4,0.4396]
[1754137493584,4.389,3511.6,3511.2,0.4396]
[1754137493784,4.389,3511.6,3511.3,0.4396]
[1754137494117,4.387,3511.5,3511.3,0.4396]
[1754137495617,0.4792,3511.4,3511.1,0.002]
[1754137495940,4.386,3511.3,3511.1,0.002]
[1754137496293,4.8652,3511.3,3511.1,0.002]
[1754137497326,0.4792,3511.2,3511.1,0.002]
[1754137497725,3.4792,3511.2,3511.1,0.002]
[1754137498608,3.0,3511.2,3511.1,0.002]
[1754137499700,3.4792,3511.2,3511.1,0.002]
[1754137501736,3.0,3511.2,3511.1,0.002]
[1754137501942,3.001,3511.2,3511.1,0.4416]
[1754137502236,3.4802,3511.2,3511.1,0.002]
[1754137502437,4.4631,3511.2,3511.1,0.002]
[1754137502841,6.1761,3511.2,3511.1,0.002]
[1754137506643,10.5591,3511.2,3511.1,0.002]
[1754137508134,43.40712916,3511.2,3511.1,0.002]
[1754137508510,46.41212916,3511.2,3511.1,0.002]
[1754137508918,46.69792916,3511.2,3511.1,0.002]
[1754137509141,47.0601958,3511.2,3511.1,0.002]
[1754137509662,47.3457558,3511.2,3511.1,0.002]
[1754137510552,47.0599558,3511.2,3511.1,0.002]
[1754137511164,39.30968916,3511.2,3511.1,0.002]
[1754137511459,43.69268916,3511.2,3511.1,0.002]
[1754137511670,39.30968916,3511.2,3511.1,0.002]
[1754137511817,40.29466,3511.2,3511.1,0.002]
[1754137512014,32.91166,3511.2,3511.1,0.002]
[1754137512231,36.86476,3511.2,3511.1,0.002]
[1754137512426,37.84766,3511.2,3511.1,0.002]
[1754137512629,37.29766,3511.2,3511.1,0.002]
[1754137512928,6.38456,3511.2,3511.1,0.002]
[1754137513242,0.001,3511.2,3511.1,0.002]
[1754137513644,4.388,3511.2,3511.1,0.002]
[1754137513852,4.938,3511.2,3511.1,0.002]
[1754137514235,4.8672,3511.2,3511.1,0.002]
[1754137514425,5.4172,3511.2,3511.1,0.002]
[1754137514625,8.4172,3511.2,3511.1,0.002]
[1754137514839,7.937,3511.2,3511.1,0.002]
[1754137515865,10.1292,3511.2,3511.1,0.002]
[1754137516042,10.5621,3511.2,3511.1,0.002]
[1754137516246,40.5621,3511.2,3511.1,0.002]
[1754137516776,40.5631,3511.2,3511.1,0.002]
[1754137517179,10.1302,3511.2,3511.1,0.002]
[1754137517484,10.5631,3511.2,3511.1,0.002]
[1754137518146,9.651,3511.2,3511.1,0.002]
[1754137518445,10.1302,3511.2,3511.1,0.002]
[1754137519591,40.5631,3511.2,3511.1,0.002]
[1754137519883,10.5631,3511.2,3511.1,0.002]
[1754137520098,46.41612916,3511.2,3511.1,0.002]
[1754137520779,53.43612916,3511.2,3511.1,0.002]
[1754137521098,20.5881,3511.2,3511.1,0.002]
[1754137521389,50.5881,3511.2,3511.1,0.002]
[1754137521566,47.5831,3511.2,3511.1,0.002]
[1754137521748,17.5831,3511.2,3511.1,0.002]
[1754137522947,50.43112916,3511.2,3511.1,0.002]
[1754137523494,47.5831,3511.2,3511.1,0.002]
[1754137524169,42.284,3511.2,3511.1,0.002]
[1754137524366,0.001,3511.2,3511.1,0.9356]
[1754137524569,4.386,3511.2,3511.1,0.9356]
[1754137524776,7.386,3511.2,3511.1,0.9356]
[1754137525267,4.386,3511.2,3511.1,0.9356]
[1754137527571,0.001,3511.2,3511.1,0.9356]
[1754137527756,7.384,3511.2,3511.1,0.002]
[1754137527961,7.934,3511.2,3511.1,0.002]
[1754137529688,10.5324,3511.2,3511.1,0.002]
[1754137530065,17.3844,3511.2,3511.1,0.002]
[1754137531184,54.4044,3511.2,3511.1,0.002]
[1754137532482,57.25242916,3511.2,3511.1,0.002]
[1754137532689,54.4044,3511.2,3511.1,0.002]
[1754137533862,23.9702,3511.2,3511.1,0.002]
[1754137534058,16.873,3511.2,3511.1,0.002]
[1754137534383,18.255,3511.2,3511.1,0.9356]
[1754137534770,18.255,3511.2,3511.1,0.002]
[1754137534980,20.518,3511.2,3511.1,0.002]
[1754137535180,23.9692,3511.2,3511.1,0.002]
[1754137535583,54.4054,3511.2,3511.1,0.002]
[1754137537883,13.873,3511.2,3511.1,0.002]
[1754137538089,11.238,3511.2,3511.1,0.9356]
[1754137538397,14.238,3511.2,3511.1,0.9356]
[1754137539024,14.238,3511.2,3511.1,0.002]
[1754137539322,14.788,3511.2,3511.1,0.4757]
[1754137539514,14.789,3511.2,3511.1,0.4757]
[1754137541224,14.789,3511.2,3511.1,0.9356]
[1754137541425,14.239,3511.2,3511.1,0.9356]
[1754137542408,14.239,3511.2,3511.1,0.4757]
[1754137543290,14.239,3511.2,3511.1,0.9356]
[1754137543596,14.237,3511.2,3511.1,0.9356]
[1754137543795,9.853,3511.2,3511.1,0.9356]
[1754137543996,14.236,3511.2,3511.1,0.9356]
[1754137545133,14.235,3511.2,3511.1,0.9356]
[1754137547638,14.235,3511.2,3511.1,0.4757]
[1754137548145,14.235,3511.2,3511.1,0.002]
[1754137548300,14.235,3511.2,3511.1,0.4757]
[1754137549330,14.235,3511.2,3511.1,0.002]
[1754137549643,14.235,3511.2,3511.1,0.4757]
[1754137549854,14.235,3511.2,3511.1,0.9356]
[1754137550054,14.235,3511.2,3511.1,0.4757]
[1754137550258,14.235,3511.2,3511.1,0.002]
[1754137550754,15.2362,3511.2,3511.1,0.002]
[1754137551758,14.6862,3511.2,3511.1,0.002]
[1754137554423,14.228,3511.2,3511.1,0.4462]
[1754137554628,14.228,3511.2,3511.1,0.9356]
[1754137555711,14.228,3511.2,3511.1,0.002]
[1754137556042,14.6833,3511.2,3511.1,0.002]
[1754137556253,14.228,3511.2,3511.1,0.002]
[1754137558815,7.376,3511.2,3511.1,0.002]
[1754137560344,7.8313,3511.2,3511.1,0.002]
[1754137560551,8.2746,3511.2,3511.1,0.002]
[1754137560721,10.5376,3511.2,3511.1,0.002]
[1754137561613,40.5376,3511.2,3511.1,0.002]
[1754137562714,43.38562916,3511.2,3511.1,0.002]
[1754137562913,40.5376,3511.2,3511.1,0.002]
[1754137563315,10.5376,3511.2,3511.1,0.002]
[1754137563510,3.001,3511.2,3511.1,0.002]
[1754137563744,7.376,3511.2,3511.1,0.002]
[1754137564120,3.001,3511.2,3511.1,0.4462]
[1754137564425,3.001,3511.2,3511.1,0.9356]
[1754137564624,7.376,3511.2,3511.1,0.9356]
[1754137568048,3.001,3511.2,3511.1,0.9356]
[1754137568436,7.376,3511.2,3511.1,0.9356]
[1754137570445,3.001,3511.2,3511.1,0.9356]
[1754137570757,7.376,3511.2,3511.1,0.9356]
[1754137572360,3.001,3511.2,3511.1,0.9356]
[1754137572521,7.376,3511.2,3511.1,0.9356]
[1754137575368,3.001,3511.2,3511.1,0.9356]
[1754137575668,7.375,3511.2,3511.1,0.9356]
[1754137577734,0.001,3511.2,3511.1,0.9356]
[1754137578271,4.375,3511.2,3511.1,0.9356]
[1754137580651,0.001,3511.2,3511.1,0.9356]
[1754137580968,0.001,3511.6,3511.1,0.9356]
[1754137581182,4.375,3511.6,3511.5,8.43214861]
[1754137581331,4.375,3511.6,3511.5,9.27536347]
[1754137581534,0.001,3511.6,3511.5,10.20896347]
[1754137590598,0.001,3512.0,3511.5,10.20896347]
[1754137590791,4.374,3512.0,3511.6,0.9219]
[1754137591096,4.374,3512.0,3511.7,2.37892635]
[1754137591454,4.374,3512.0,3511.8,0.4326]
[1754137591860,0.4715,3512.7,3511.9,0.95037461]
[1754137592104,0.4662,3512.9,3512.4,8.43214861]
[1754137592105,4.373,3512.6,3512.4,8.43214861]
[1754137592311,4.373,3512.6,3512.5,0.84321486]
[1754137592486,4.373,3512.6,3512.4,8.43214861]
[1754137592691,4.8445,3512.6,3512.4,8.43214861]
[1754137593384,0.9367,3512.5,3511.9,8.43214861]
[1754137593591,0.4715,3512.4,3511.9,8.43214861]